fUST/lending_fUST_20240823
["ID","MTS","AMOUNT","RATE_DAILY","PERIOD"]
[335650283,1724399444237,-717.14,0.00016438,2]
[335650284,1724399444249,-500.0,0.00016438,2]
[335650285,1724399444262,-717.14,0.00016438,2]
[335650286,1724399444271,-717.14,0.00016438,2]
[335650287,1724399444281,-717.14,0.00016438,2]
[335650288,1724399444291,-717.14,0.00016438,2]
[335650289,1724399444300,-500.0,0.00016438,2]
[335650290,1724399444310,-500.0,0.00016438,2]
[335650291,1724399444319,-717.14,0.00016438,2]
[335650292,1724399444328,-500.0,0.00016438,2]
[335650293,1724399444337,-717.14,0.00016438,2]
[335650294,1724399444347,-500.0,0.00016438,2]
[335650295,1724399444356,-717.14,0.00016438,2]
[335650296,1724399444365,-717.14,0.00016438,2]
[335650297,1724399444374,-717.14,0.00016438,2]
[335650298,1724399444384,-500.0,0.00016438,2]
[335650299,1724399444393,-717.14,0.00016438,2]
[335650300,1724399444402,-717.14,0.00016438,2]
[335650301,1724399444412,-717.14,0.00016438,2]
[335650302,1724399444422,-717.14,0.00016438,2]
[335650303,1724399444431,-500.0,0.00016438,2]
[335650304,1724399444441,-500.0,0.00016438,2]
[335650305,1724399444450,-717.14,0.00016438,2]
[335650306,1724399444459,-717.14,0.00016438,2]
[335650307,1724399444468,-717.14,0.00016438,2]
[335650308,1724399444478,-717.14,0.00016438,2]
[335650309,1724399444489,-717.14,0.00016438,2]
[335650310,1724399444500,-717.14,0.00016438,2]
[335650311,1724399444509,-801.25,0.00016438,2]
[335650312,1724399444521,-717.14,0.00016438,2]
[335650313,1724399444533,-717.31,0.00016438,2]
[335650314,1724399444543,-500.0,0.00016438,2]
[335650315,1724399444554,-500.0,0.00016438,2]
[335650316,1724399444566,-500.0,0.00016438,2]
[335650317,1724399444576,-500.0,0.00016438,2]
[335650318,1724399444587,-1174.6,0.00016438,2]
[335650319,1724399444601,-500.0,0.00016438,2]
[335650320,1724399444612,-159.76330745,0.00016438,2]
[335650321,1724399444623,-1375.97,0.00016438,2]
[335650322,1724399444634,-627.42,0.00016438,2]
[335650323,1724399444645,-500.0,0.00016438,2]
[335650324,1724399444657,-500.0,0.00016438,2]
[335650325,1724399444667,-2256.21,0.00016438,2]
[335650326,1724399444677,-500.0,0.00016438,2]
[335650327,1724399444687,-1407.48,0.00016438,2]
[335650328,1724399444697,-151.05312764,0.00016438,2]
[335650329,1724399444707,-307.06820388,0.00016438,2]
[335650330,1724399444716,-500.0,0.00016438,2]
[335650331,1724399444728,-3581.68,0.00016438,2]
[335650332,1724399444738,-500.0,0.00016438,2]
[335650333,1724399444747,-500.0,0.00016438,2]
[335650334,1724399444757,-500.0,0.00016438,2]
[335650335,1724399444767,-500.0,0.00016438,2]
[335650336,1724399444778,-500.0,0.00016438,2]
[335650337,1724399444789,-500.0,0.00016438,2]
[335650338,1724399444799,-500.0,0.00016438,2]
[335650339,1724399444810,-653.14,0.00016438,2]
[335650340,1724399444819,-500.0,0.00016438,2]
[335650341,1724399444830,-500.0,0.00016438,2]
[335650342,1724399444842,-500.0,0.00016438,2]
[335650343,1724399444853,-500.0,0.00016438,2]
[335650344,1724399444865,-500.0,0.00016438,2]
[335650345,1724399444875,-379.50979805,0.00016438,2]
[335650346,1724399444888,-500.0,0.00016438,2]
[335650347,1724399444899,-656.45,0.00016438,2]
[335650348,1724399444909,-801.33,0.00016438,2]
[335650349,1724399444922,-200.0,0.00016438,2]
[335650350,1724399444933,-1136.28,0.00016438,2]
[335650351,1724399444945,-500.0,0.00016438,2]
[335650352,1724399444958,-948.02,0.00016438,2]
[335650353,1724399444969,-500.0,0.00016438,2]
[335650354,1724399444980,-500.0,0.00016438,2]
[335650355,1724399444992,-969.43,0.00016438,2]
[335650356,1724399445003,-421.09128022,0.00016438,2]
[335650357,1724399445012,-500.0,0.00016438,2]
[335650358,1724399445023,-1253.14,0.00016438,2]
[335650359,1724399445034,-3044.76,0.00016438,2]
[335650360,1724399445044,-500.0,0.00016438,2]
[335650361,1724399445053,-726.78,0.00016438,2]
[335650362,1724399445062,-500.0,0.00016438,2]
[335650363,1724399445072,-917.1,0.00016438,2]
[335650364,1724399445081,-500.0,0.00016438,2]
[335650365,1724399445090,-500.0,0.00016438,2]
[335650366,1724399445100,-500.0,0.00016438,2]
[335650367,1724399445109,-500.0,0.00016438,2]
[335650368,1724399445118,-500.0,0.00016438,2]
[335650369,1724399445127,-962.25,0.00016438,2]
[335650370,1724399445137,-654.19,0.00016438,2]
[335650371,1724399445146,-500.0,0.00016438,2]
[335650372,1724399445155,-622.81,0.00016438,2]
[335650373,1724399445164,-500.0,0.00016438,2]
[335650374,1724399445174,-500.0,0.00016438,2]
[335650375,1724399445184,-500.0,0.00016438,2]
[335650376,1724399445194,-500.0,0.00016438,2]
[335650377,1724399445204,-500.0,0.00016438,2]
[335650378,1724399445213,-500.0,0.00016438,2]
[335650379,1724399445222,-3003.88,0.00016438,2]
[335650380,1724399445231,-778.97,0.00016438,2]
[335650381,1724399445241,-2770.27,0.00016438,2]
[335650382,1724399445251,-500.0,0.00016438,2]
[335650383,1724399445261,-500.0,0.00016438,2]
[335650384,1724399445270,-782.92,0.00016438,2]
[335650385,1724399445279,-889.13,0.00016438,2]
[335650386,1724399445289,-533.36,0.00016438,2]
[335650387,1724399445299,-863.62,0.00016438,2]
[335650388,1724399445308,-343.11003911,0.00016438,2]
[335650389,1724399445317,-500.0,0.00016438,2]
[335650390,1724399445326,-500.0,0.00016438,2]
[335650391,1724399445336,-919.19,0.00016438,2]
[335650392,1724399445346,-500.0,0.00016438,2]
[335650393,1724399445356,-500.0,0.00016438,2]
[335650394,1724399445365,-2904.98,0.00016438,2]
[335650395,1724399445374,-500.0,0.00016438,2]
[335650396,1724399445436,-500.74838493,0.00016438,2]
[335650397,1724399445447,-500.0,0.00016438,2]
[335650398,1724399445457,-500.0,0.00016438,2]
[335650399,1724399445466,-626.9,0.00016438,2]
[335650400,1724399445478,-506.04598366,0.00016438,2]
[335650401,1724399445488,-500.0,0.00016438,2]
[335650402,1724399445499,-500.0,0.00016438,2]
[335650403,1724399445510,-500.0,0.00016438,2]
[335650404,1724399445523,-690.82,0.00016438,2]
[335650405,1724399445533,-500.0,0.00016438,2]
[335650406,1724399445543,-500.0,0.00016438,2]
[335650407,1724399445552,-500.0,0.00016438,2]
[335650408,1724399445564,-500.0,0.00016438,2]
[335650409,1724399445574,-500.45729683,0.00016438,2]
[335650410,1724399445583,-505.0683226,0.00016438,2]
[335650411,1724399445592,-500.0,0.00016438,2]
[335650412,1724399445603,-3815.04,0.00016438,2]
[335650413,1724399445612,-500.0,0.00016438,2]
[335650414,1724399445621,-182.78490922,0.00016438,2]
[335650415,1724399445630,-500.0,0.00016438,2]
[335650416,1724399445640,-964.47,0.00016438,2]
[335650417,1724399445649,-500.0,0.00016438,2]
[335650418,1724399445660,-502.63246932,0.00016438,2]
[335650419,1724399445671,-504.96981069,0.00016438,2]
[335650420,1724399445683,-500.0,0.00016438,2]
[335650421,1724399445693,-500.0,0.00016438,2]
[335650422,1724399445703,-835.97,0.00016438,2]
[335650423,1724399445713,-500.0,0.00016438,2]
[335650424,1724399445724,-759.74,0.00016438,2]
[335650425,1724399445735,-513.1426626,0.00016438,2]
[335650426,1724399445744,-500.0,0.00016438,2]
[335650427,1724399445754,-500.0,0.00016438,2]
[335650428,1724399445765,-449.26554238,0.00016438,2]
[335650429,1724399445776,-1164.46,0.00016438,2]
[335650430,1724399445785,-504.72853494,0.00016438,2]
[335650431,1724399445794,-703.11,0.00016438,2]
[335650432,1724399445803,-500.0,0.00016438,2]
[335650433,1724399445813,-500.0,0.00016438,2]
[335650434,1724399445822,-1781.0,0.00016438,2]
[335650435,1724399445833,-500.0,0.00016438,2]
[335650436,1724399445846,-918.84,0.00016438,2]
[335650437,1724399445858,-500.0,0.00016438,2]
[335650438,1724399445868,-500.0,0.00016438,2]
[335650439,1724399445879,-1565.08,0.00016438,2]
[335650440,1724399445888,-500.0,0.00016438,2]
[335650441,1724399445900,-500.0,0.00016438,2]
[335650442,1724399445910,-500.0,0.00016438,2]
[335650443,1724399445919,-500.0,0.00016438,2]
[335650444,1724399445929,-583.33,0.00016438,2]
[335650445,1724399445939,-500.0,0.00016438,2]
[335650446,1724399445951,-294.95521175,0.00016438,2]
[335650447,1724399445962,-768.06,0.00016438,2]
[335650448,1724399445971,-500.0,0.00016438,2]
[335650449,1724399445981,-500.0,0.00016438,2]
[335650450,1724399445992,-757.31,0.00016438,2]
[335650451,1724399446003,-500.0,0.00016438,2]
[335650452,1724399446014,-500.0,0.00016438,2]
[335650453,1724399446024,-1048.23,0.00016438,2]
[335650454,1724399446035,-500.0,0.00016438,2]
[335650455,1724399446045,-500.0,0.00016438,2]
[335650456,1724399446055,-843.82,0.00016438,2]
[335650457,1724399446066,-843.82,0.00016438,2]
[335650458,1724399446076,-843.82,0.00016438,2]
[335650459,1724399446087,-843.82,0.00016438,2]
[335650460,1724399446096,-843.82,0.00016438,2]
[335650461,1724399446107,-500.0,0.00016438,2]
[335650462,1724399446118,-843.82,0.00016438,2]
[335650463,1724399446130,-843.82,0.00016438,2]
[335650464,1724399446140,-843.82,0.00016438,2]
[335650465,1724399446150,-843.82,0.00016438,2]
[335650466,1724399446161,-500.0,0.00016438,2]
[335650467,1724399446171,-843.82,0.00016438,2]
[335650468,1724399446182,-843.82,0.00016438,2]
[335650469,1724399446191,-843.82,0.00016438,2]
[335650470,1724399446203,-943.3,0.00016438,2]
[335650472,1724399446213,-500.0,0.00016438,2]
[335650473,1724399446223,-843.82,0.00016438,2]
[335650474,1724399446234,-843.82,0.00016438,2]
[335650475,1724399446244,-500.0,0.00016438,2]
[335650476,1724399446255,-843.82,0.00016438,2]
[335650477,1724399446265,-843.82,0.00016438,2]
[335650478,1724399446275,-685.93,0.00016438,2]
[335650479,1724399446285,-843.82,0.00016438,2]
[335650480,1724399446294,-843.82,0.00016438,2]
[335650481,1724399446303,-1182.78,0.00016438,2]
[335650482,1724399446312,-843.82,0.00016438,2]
[335650484,1724399446322,-2330.37,0.00016438,2]
[335650485,1724399446331,-843.82,0.00016438,2]
[335650486,1724399446340,-843.82,0.00016438,2]
[335650487,1724399446349,-509.03,0.00016438,2]
[335650488,1724399446358,-843.82,0.00016438,2]
[335650489,1724399446368,-843.82,0.00016438,2]
[335650490,1724399446377,-501.92,0.00016438,2]
[335650491,1724399446386,-843.9,0.00016438,2]
[335650492,1724399446395,-500.0,0.00016438,2]
[335650493,1724399446404,-500.0,0.00016438,2]
[335650494,1724399446414,-500.0,0.00016438,2]
[335650495,1724399446423,-500.0,0.00016438,2]
[335650496,1724399446433,-557.27,0.00016438,2]
[335650497,1724399446444,-500.0,0.00016438,2]
[335650498,1724399446453,-1026.88,0.00016438,2]
[335650499,1724399446464,-519.23270273,0.00016438,2]
[335650500,1724399446474,-584.03,0.00016438,2]
[335650501,1724399446482,-500.0,0.00016438,2]
[335650502,1724399446491,-500.0,0.00016438,2]
[335650503,1724399446505,-720.34,0.00016438,2]
[335650504,1724399446520,-500.0,0.00016438,2]
[335650505,1724399446531,-683.01,0.00016438,2]
[335650506,1724399446541,-500.0,0.00016438,2]
[335650507,1724399446552,-500.0,0.00016438,2]
[335650508,1724399446563,-500.0,0.00016438,2]
[335650509,1724399446572,-596.76,0.00016438,2]
[335650510,1724399446582,-566.08186482,0.00016438,2]
[335650511,1724399446591,-500.0,0.00016438,2]
[335650512,1724399446603,-500.0,0.00016438,2]
[335650513,1724399446614,-500.0,0.00016438,2]
[335650514,1724399446624,-500.0,0.00016438,2]
[335650515,1724399446634,-500.0,0.00016438,2]
[335650516,1724399446644,-1676.34,0.00016438,2]
[335650517,1724399446655,-1149.85,0.00016438,2]
[335650518,1724399446665,-500.0,0.00016438,2]
[335650519,1724399446675,-500.0,0.00016438,2]
[335650520,1724399446684,-500.0,0.00016438,2]
[335650521,1724399446694,-500.0,0.00016438,2]
[335650522,1724399446704,-500.0,0.00016438,2]
[335650523,1724399446715,-500.0,0.00016438,2]
[335650524,1724399446726,-500.0,0.00016438,2]
[335650525,1724399446736,-500.0,0.00016438,2]
[335650526,1724399446745,-671.06,0.00016438,2]
[335650527,1724399446755,-500.0,0.00016438,2]
[335650528,1724399446766,-500.0,0.00016438,2]
[335650529,1724399446776,-927.9,0.00016438,2]
[335650530,1724399446785,-4210.54,0.00016438,2]
[335650531,1724399446794,-681.99,0.00016438,2]
[335650532,1724399446804,-2009.89,0.00016438,2]
[335650533,1724399446814,-1562.7,0.00016438,2]
[335650534,1724399446824,-500.0,0.00016438,2]
[335650535,1724399446833,-500.0,0.00016438,2]
[335650536,1724399446842,-633.39,0.00016438,2]
[335650537,1724399446852,-599.92979975,0.00016438,2]
[335650538,1724399446861,-500.0,0.00016438,2]
[335650539,1724399446871,-500.0,0.00016438,2]
[335650540,1724399446880,-646.85,0.00016438,2]
[335650541,1724399446890,-213.12551487,0.00016438,2]
[335650542,1724399446900,-500.0,0.00016438,2]
[335650543,1724399446910,-500.0,0.00016438,2]
[335650544,1724399446920,-500.0,0.00016438,2]
[335650545,1724399446929,-500.0,0.00016438,2]
[335650546,1724399446939,-569.9,0.00016438,2]
[335650547,1724399446949,-715.53,0.00016438,2]
[335650548,1724399446959,-3437.41,0.00016438,2]
[335650549,1724399446968,-515.72,0.00016438,2]
[335650550,1724399446978,-1500.69,0.00016438,2]
[335650551,1724399446988,-916.4,0.00016438,2]
[335650552,1724399446999,-771.88,0.00016438,2]
[335650553,1724399447017,-500.0,0.00016438,2]
[335650554,1724399447026,-500.0,0.00016438,2]
[335650555,1724399447036,-500.0,0.00016438,2]
[335650556,1724399447055,-500.0,0.00016438,2]
[335650557,1724399447066,-544.76,0.00016438,2]
[335650558,1724399447076,-740.65,0.00016438,2]
[335650559,1724399447086,-500.0,0.00016438,2]
[335650560,1724399447096,-500.0,0.00016438,2]
[335650561,1724399447106,-595.46,0.00016438,2]
[335650562,1724399447117,-500.0,0.00016438,2]
[335650563,1724399447127,-500.0,0.00016438,2]
[335650564,1724399447136,-500.0,0.00016438,2]
[335650565,1724399447146,-4302.34,0.00016438,2]
[335650566,1724399447156,-500.0,0.00016438,2]
[335650567,1724399447165,-500.0,0.00016438,2]
[335650568,1724399447175,-500.0,0.00016438,2]
[335650569,1724399447185,-500.0,0.00016438,2]
[335650570,1724399447194,-500.0,0.00016438,2]
[335650571,1724399447205,-776.95,0.00016438,2]
[335650572,1724399447214,-500.0,0.00016438,2]
[335650573,1724399447225,-500.0,0.00016438,2]
[335650574,1724399447234,-500.0,0.00016438,2]
[335650575,1724399447243,-500.0,0.00016438,2]
[335650576,1724399447254,-500.0,0.00016438,2]
[335650577,1724399447264,-2160.1,0.00016438,2]
[335650578,1724399447274,-500.0,0.00016438,2]
[335650579,1724399447283,-501.15612593,0.00016438,2]
[335650580,1724399447293,-532.89,0.00016438,2]
[335650581,1724399447303,-500.0,0.00016438,2]
[335650582,1724399447314,-1013.11,0.00016438,2]
[335650583,1724399447323,-527.77,0.00016438,2]
[335650584,1724399447333,-500.0,0.00016438,2]
[335650585,1724399447343,-500.0,0.00016438,2]
[335650586,1724399447353,-500.0,0.00016438,2]
[335650587,1724399447363,-500.0,0.00016438,2]
[335650588,1724399447372,-784.63,0.00016438,2]
[335650589,1724399447382,-500.0,0.00016438,2]
[335650590,1724399447391,-500.0,0.00016438,2]
[335650591,1724399447401,-1304.24,0.00016438,2]
[335650592,1724399447411,-500.0,0.00016438,2]
[335650593,1724399447421,-1056.66,0.00016438,2]
[335650594,1724399447431,-500.0,0.00016438,2]
[335650595,1724399447440,-500.0,0.00016438,2]
[335650596,1724399447451,-899.32,0.00016438,2]
[335650597,1724399447461,-500.0,0.00016438,2]
[335650598,1724399447471,-500.0,0.00016438,2]
[335650599,1724399447481,-1403.41,0.00016438,2]
[335650600,1724399447491,-500.0,0.00016438,2]
[335650601,1724399447502,-500.0,0.00016438,2]
[335650602,1724399447512,-500.0,0.00016438,2]
[335650603,1724399447524,-500.0,0.00016438,2]
[335650604,1724399447534,-500.0,0.00016438,2]
[335650605,1724399447544,-389.40762411,0.00016438,2]
[335650606,1724399447554,-1339.69,0.00016438,2]
[335650607,1724399447565,-7079.28,0.00016438,2]
[335650608,1724399447574,-6200.52,0.00016438,2]
[335650609,1724399447584,-500.0,0.00016438,2]
[335650610,1724399447594,-500.0,0.00016438,2]
[335650611,1724399447605,-2016.03,0.00016438,2]
[335650612,1724399447615,-500.0,0.00016438,2]
[335650613,1724399447625,-500.0,0.00016438,2]
[335650614,1724399447635,-500.0,0.00016438,2]
[335650615,1724399447646,-500.0,0.00016438,2]
[335650616,1724399447655,-500.0,0.00016438,2]
[335650617,1724399447671,-508.30643734,0.00016438,2]
[335650618,1724399447680,-1035.13,0.00016438,2]
[335650619,1724399447691,-753.46,0.00016438,2]
[335650620,1724399447700,-500.0,0.00016438,2]
[335650621,1724399447710,-500.0,0.00016438,2]
[335650622,1724399447720,-1311.5,0.00016438,2]
[335650623,1724399447730,-2027.66,0.00016438,2]
[335650624,1724399447740,-3900.42,0.00016438,2]
[335650625,1724399447750,-500.0,0.00016438,2]
[335650626,1724399447763,-500.0,0.00016438,2]
[335650627,1724399447773,-500.0,0.00016438,2]
[335650628,1724399447783,-500.0,0.00016438,2]
[335650629,1724399447793,-500.0,0.00016438,2]
[335650630,1724399447804,-1386.31,0.00016438,2]
[335650631,1724399447814,-500.0,0.00016438,2]
[335650632,1724399447824,-543.42,0.00016438,2]
[335650633,1724399447835,-524.15852355,0.00016438,2]
[335650634,1724399447846,-500.0,0.00016438,2]
[335650635,1724399447857,-500.0,0.00016438,2]
[335650636,1724399447868,-506.22716781,0.00016438,2]
[335650637,1724399447878,-500.0,0.00016438,2]
[335650638,1724399447889,-500.0,0.00016438,2]
[335650639,1724399447900,-500.0,0.00016438,2]
[335650640,1724399447911,-924.08,0.00016438,2]
[335650641,1724399447921,-491.31566962,0.00016438,2]
[335650642,1724399447932,-1385.35,0.00016438,2]
[335650643,1724399447942,-504.30774141,0.00016438,2]
[335650644,1724399447953,-2835.04,0.00016438,2]
[335650645,1724399447963,-1311.81,0.00016438,2]
[335650646,1724399447974,-500.0,0.00016438,2]
[335650647,1724399447985,-500.0,0.00016438,2]
[335650648,1724399447996,-529.8509849,0.00016438,2]
[335650649,1724399448006,-1180.35,0.00016438,2]
[335650650,1724399448016,-542.16,0.00016438,2]
[335650651,1724399448027,-500.0,0.00016438,2]
[335650652,1724399448038,-500.0,0.00016438,2]
[335650653,1724399448049,-2675.45,0.00016438,2]
[335650654,1724399448061,-500.0,0.00016438,2]
[335650655,1724399448072,-547.36,0.00016438,2]
[335650656,1724399448082,-500.0,0.00016438,2]
[335650657,1724399448093,-500.0,0.00016438,2]
[335650658,1724399448104,-500.0,0.00016438,2]
[335650659,1724399448115,-500.0,0.00016438,2]
[335650660,1724399448125,-1817.09,0.00016438,2]
[335650661,1724399448136,-620.45,0.00016438,2]
[335650662,1724399448147,-500.0,0.00016438,2]
[335650663,1724399448157,-500.0,0.00016438,2]
[335650664,1724399448167,-500.0,0.00016438,2]
[335650665,1724399448178,-813.53,0.00016438,2]
[335650666,1724399448189,-4039.1,0.00016438,2]
[335650667,1724399448200,-607.92,0.00016438,2]
[335650668,1724399448210,-451.33411107,0.00016438,2]
[335650669,1724399448222,-500.0,0.00016438,2]
[335650670,1724399448232,-500.0,0.00016438,2]
[335650671,1724399448243,-500.0,0.00016438,2]
[335650672,1724399448255,-858.99,0.00016438,2]
[335650673,1724399448266,-500.0,0.00016438,2]
[335650674,1724399448285,-895.25,0.00016438,2]
[335650675,1724399448298,-500.0,0.00016438,2]
[335650676,1724399448310,-500.0,0.00016438,2]
[335650677,1724399448322,-1929.74,0.00016438,2]
[335650678,1724399448334,-500.0,0.00016438,2]
[335650679,1724399448345,-1130.51,0.00016438,2]
[335650680,1724399448356,-500.0,0.00016438,2]
[335650681,1724399448366,-500.0,0.00016438,2]
[335650682,1724399448377,-500.0,0.00016438,2]
[335650683,1724399448388,-500.0,0.00016438,2]
[335650684,1724399448398,-501.00578619,0.00016438,2]
[335650685,1724399448409,-500.0,0.00016438,2]
[335650686,1724399448421,-500.0,0.00016473,2]
[335650687,1724399448432,-500.0,0.00016473,2]
[335650688,1724399448443,-500.0,0.00016473,2]
[335650689,1724399448454,-150.112233,0.000167,2]
[335650690,1724399448465,-150.112233,0.000167,2]
[335650691,1724399448477,-500.0,0.00016712,2]
[335650692,1724399448488,-379.45022664,0.00016712,2]
[335650693,1724399448501,-500.0,0.00016712,2]
[335650694,1724399448511,-575.52,0.00016712,2]
[335650695,1724399448524,-500.0,0.00016712,2]
[335650696,1724399448535,-500.0,0.00016712,2]
[335650697,1724399448549,-500.0,0.00016712,2]
[335650698,1724399448560,-853.07,0.00016712,2]
[335650699,1724399448570,-500.0,0.00016712,2]
[335650700,1724399448581,-500.0,0.00016712,2]
[335650701,1724399448595,-500.0,0.00016712,2]
[335650702,1724399448606,-500.0,0.00016712,2]
[335650703,1724399448617,-608.85,0.00016712,2]
[335650704,1724399448629,-500.0,0.00016712,2]
[335650705,1724399448639,-500.0,0.00016712,2]
[335650706,1724399448650,-500.0,0.00016712,2]
[335650707,1724399448661,-500.0,0.00016712,2]
[335650708,1724399448672,-500.0,0.00016712,2]
[335650709,1724399448683,-458.5888894,0.00016712,2]
[335650710,1724399448696,-500.0,0.00016712,2]
[335650711,1724399448706,-500.0,0.00016712,2]
[335650712,1724399448719,-2220.39,0.00016712,2]
[335650713,1724399448730,-500.0,0.00016712,2]
[335650714,1724399448740,-500.0,0.00016712,2]
[335650715,1724399448751,-500.0,0.00016712,2]
[335650716,1724399448762,-500.0,0.00016712,2]
[335650717,1724399448773,-502.02779454,0.00016712,2]
[335650718,1724399448784,-500.0,0.00016712,2]
[335650719,1724399448795,-1439.39,0.00016712,2]
[335650720,1724399448806,-773.4,0.00016712,2]
[335650721,1724399448816,-500.0,0.00016712,2]
[335650722,1724399448826,-712.6,0.00016712,2]
[335650723,1724399448837,-589.8,0.00016712,2]
[335650724,1724399448848,-684.32,0.00016712,2]
[335650725,1724399448859,-672.9,0.00016712,2]
[335650726,1724399448869,-552.48,0.00016712,2]
[335650727,1724399448880,-500.0,0.00016712,2]
[335650728,1724399448890,-500.0,0.00016712,2]
[335650729,1724399448901,-500.0,0.00016712,2]
[335650730,1724399448912,-506.45474192,0.00016712,2]
[335650731,1724399448923,-500.0,0.00016712,2]
[335650732,1724399448935,-500.0,0.00016712,2]
[335650733,1724399448945,-500.0,0.00016712,2]
[335650734,1724399448957,-500.0,0.00016712,2]
[335650735,1724399448968,-508.67620413,0.00016712,2]
[335650736,1724399448979,-500.0,0.00016712,2]
[335650737,1724399448990,-500.0,0.00016712,2]
[335650738,1724399449001,-500.0,0.00016712,2]
[335650739,1724399449013,-500.0,0.00016712,2]
[335650740,1724399449023,-507.93197011,0.00016712,2]
[335650741,1724399449035,-619.84,0.00016712,2]
[335650742,1724399449047,-500.0,0.00016712,2]
[335650743,1724399449058,-657.34,0.00016712,2]
[335650744,1724399449069,-500.0,0.00016712,2]
[335650745,1724399449080,-500.0,0.00016712,2]
[335650746,1724399449092,-500.0,0.00016712,2]
[335650747,1724399449103,-1400.63,0.00016712,2]
[335650748,1724399449113,-500.0,0.00016712,2]
[335650749,1724399449124,-500.0,0.00016712,2]
[335650750,1724399449134,-500.0,0.00016712,2]
[335650751,1724399449146,-500.0,0.00016712,2]
[335650752,1724399449156,-689.11,0.00016712,2]
[335650753,1724399449167,-500.0,0.00016712,2]
[335650754,1724399449177,-500.0,0.00016712,2]
[335650755,1724399449188,-500.0,0.00016712,2]
[335650756,1724399449198,-374.90329171,0.00016712,2]
[335650757,1724399451096,-606.69,0.00016438,2]
[335650758,1724399451106,-500.0,0.00016438,2]
[335650759,1724399451118,-500.0,0.00016438,2]
[335650760,1724399451129,-500.0,0.00016438,2]
[335650761,1724399451139,-500.0,0.00016438,2]
[335650762,1724399451151,-125.09670829,0.00016712,2]
[335650763,1724399451162,-500.0,0.00016712,2]
[335650764,1724399451172,-500.0,0.00016712,2]
[335650765,1724399451183,-500.0,0.00016712,2]
[335650766,1724399451195,-500.0,0.00016712,2]
[335650767,1724399451207,-540.54,0.00016712,2]
[335650768,1724399451217,-500.0,0.00016712,2]
[335650769,1724399451229,-500.0,0.00016712,2]
[335650770,1724399451239,-500.0,0.00016712,2]
[335650771,1724399451249,-588.53,0.00016712,2]
[335650772,1724399451259,-542.39,0.00016712,2]
[335650773,1724399451269,-500.0,0.00016712,2]
[335650774,1724399451279,-500.0,0.00016712,2]
[335650775,1724399451289,-781.81,0.00016712,2]
[335650776,1724399451299,-500.0,0.00016712,2]
[335650777,1724399451309,-654.56,0.00016712,2]
[335650778,1724399451319,-500.0,0.00016712,2]
[335650779,1724399451329,-506.14764289,0.00016712,2]
[335650780,1724399451340,-598.05,0.00016712,2]
[335650781,1724399451352,-500.0,0.00016712,2]
[335650782,1724399451364,-500.0,0.00016712,2]
[335650783,1724399451373,-174.32757108,0.00016712,2]
[335650784,1724399451384,-500.0,0.00016712,2]